bitfinex-derivatives/quotes_SOLF0:USTF0_20260107
["timestamp","ask_amount","ask_price","bid_price","bid_amount"]
[1767752431902,103.36466293,139.0,138.9,9.30352404]
[1767752432290,85.1,138.99,138.9,9.30352404]
[1767752432705,6.4798,138.97,138.9,9.30352404]
[1767752432890,85.1,138.99,138.9,9.30352404]
[1767752434291,85.1,138.99,138.91,0.32180142]
[1767752434999,85.1,139.01,138.91,0.32180142]
[1767752435709,6.4788,138.99,138.91,6.80420142]
[1767752437512,6.4788,138.99,138.91,15.78592404]
[1767752438304,1.65413229,138.98,138.9,8.98172262]
[1767752438912,6.4798,138.97,138.9,8.98172262]
[1767752441216,6.4803,138.96,138.9,8.98172262]
[1767752442110,6.4803,138.96,138.89,15.78692404]
[1767752442318,6.4803,138.96,138.9,0.32180142]
[1767752448525,6.48,138.97,138.91,0.32180142]
[1767752449315,1.65413229,138.98,138.91,0.32180142]
[1767752449628,1.65413229,138.98,138.91,6.80430142]
[1767752449926,8.13363229,138.98,138.91,0.32180142]
[1767752450524,8.13363229,138.98,138.91,6.80430142]
[1767752452223,1.65413229,138.96,138.9,0.32180142]
[1767752453327,8.13433229,138.96,138.9,0.32180142]
[1767752454829,8.13433229,138.96,138.9,6.80480142]
[1767752455331,8.13433229,138.96,138.9,0.32180142]
[1767752456832,6.4802,138.96,138.9,0.32180142]
[1767752459235,6.4802,138.96,138.9,6.80470142]
[1767752462640,8.13433229,138.96,138.89,15.46512262]
[1767752462844,8.13433229,138.96,138.88,0.30676279]
[1767752462845,1.65413229,138.94,138.88,8.98172262]
[1767752463138,1.65413229,138.94,138.86,9.28848541]
[1767752463342,1.65413229,138.94,138.87,0.30676279]
[1767752464332,1.65413229,138.94,138.87,9.28848541]
[1767752464527,1.65413229,138.94,138.88,6.4839]
[1767752465137,93.21483229,138.95,138.88,6.4839]
[1767752465338,93.21483229,138.95,138.89,6.4834]
[1767752467639,86.73413229,138.95,138.89,6.4834]
[1767752467940,86.73413229,138.95,138.89,6.79620085]
[1767752468640,1.65413229,138.95,138.89,6.79620085]
[1767752468838,93.21423229,138.97,138.9,6.4828]
[1767752469643,93.21423229,138.97,138.9,15.46452262]
[1767752470040,93.21423229,138.97,138.89,0.31280085]
[1767752470041,8.13333229,138.99,138.91,9.29452347]
[1767752470236,93.21333229,138.99,138.91,9.29452347]
[1767752470746,6.4792,138.99,138.92,0.31280085]
[1767752471043,8.13253229,139.0,138.92,9.29452347]
[1767752471634,8.13253229,139.0,138.93,9.29452347]
[1767752472343,8.13253229,139.0,138.94,8.98172262]
[1767752472540,1.65413229,139.0,138.94,9.29452347]
[1767752472746,6.4778,139.02,138.95,9.29452347]
[1767752473334,1.65413229,139.03,138.95,9.29452347]
[1767752473538,8.13113229,139.03,138.97,0.31280085]
[1767752473739,85.08,139.04,138.97,0.31280085]
[1767752473939,1.65413229,139.06,138.98,8.98172262]
[1767752474242,1.65413229,139.06,138.99,9.29452347]
[1767752474849,6.4761,139.05,138.99,9.29452347]
[1767752476645,6.4761,139.05,138.99,0.31280085]
[1767752480451,1.65413229,139.04,138.99,0.31280085]
[1767752480851,8.13083229,139.04,138.97,9.29452347]
[1767752481052,1.65413229,139.02,138.96,8.98172262]
[1767752481252,1.65413229,139.02,138.95,9.29452347]
[1767752481450,6.478,139.01,138.95,0.31280085]
[1767752487264,1.65413229,139.02,138.95,0.31280085]
[1767752488065,8.13163229,139.02,138.95,0.31280085]
[1767752488276,8.13163229,139.02,138.94,6.79390085]
[1767752488563,8.13163229,139.02,138.94,0.31280085]
[1767752489365,8.13163229,139.02,138.94,6.79390085]
[1767752490371,8.13163229,139.02,138.95,6.4806]
[1767752494981,85.06,139.04,138.96,0.32031006]
[1767752495162,85.06,139.04,138.97,0.32031006]
[1767752495366,85.06,139.04,138.98,6.4792]
[1767752495568,85.06,139.04,138.97,0.32031006]
[1767752496666,85.06,139.04,138.99,6.4787]
[1767752496866,6.476,139.05,138.99,6.4787]
[1767752497275,6.476,139.05,138.97,6.79971006]
[1767752497976,6.476,139.05,138.98,6.4792]
[1767752498176,6.476,139.05,138.98,6.79951006]
[1767752504978,6.476,139.05,138.99,0.32031006]
[1767752506376,87.62237897,139.07,138.99,0.32031006]
[1767752507580,6.4756,139.06,138.99,0.32031006]
[1767752508176,6.4744,139.09,139.02,0.32031006]
[1767752508583,185.7344,139.12,139.02,0.32031006]
[1767752508584,85.04,139.12,139.02,0.32031006]
[1767752508779,9.05487897,139.13,139.05,0.32031006]
[1767752508979,100.676,139.14,139.05,0.32031006]
[1767752509379,185.716,139.14,139.05,0.32031006]
[1767752509780,6.4726,139.13,139.05,0.32031006]
[1767752509976,185.716,139.14,139.05,0.32031006]
[1767752511383,6.4729,139.12,139.05,0.32031006]
[1767752514284,6.4733,139.11,139.03,0.32031006]
[1767752514784,9.05487897,139.13,139.05,0.32031006]
[1767752514984,2.58237897,139.13,139.05,0.32031006]
[1767752515986,6.4728,139.12,139.05,6.79621006]
[1767752518783,2.58237897,139.13,139.05,6.79621006]
[1767752519885,9.05467897,139.13,139.05,6.79621006]
[1767752520491,6.4723,139.13,139.06,6.77881623]
[1767752520687,85.04,139.14,139.06,6.77881623]
[1767752521493,2.58237897,139.12,139.04,6.80239908]
[1767752521785,2.58237897,139.12,139.02,0.32629908]
[1767752521988,85.0,139.11,139.02,0.32629908]
[1767752522178,85.0,139.11,139.04,0.32629908]
[1767752522384,85.0,139.11,139.01,0.32629908]
[1767752522586,2.58237897,139.09,139.01,0.32629908]
[1767752523689,9.05657897,139.09,139.02,6.4774]
[1767752524391,2.58237897,139.09,138.99,0.32629908]
[1767752524699,2.58237897,139.06,138.99,0.32629908]
[1767752525395,94.05697897,139.09,138.99,0.32629908]
[1767752526691,94.05697897,139.09,139.02,0.32629908]
[1767752526897,91.4736,139.11,139.02,0.32629908]
[1767752527099,91.4736,139.11,139.0,8.98172262]
[1767752527100,91.4736,139.11,139.03,6.80309908]
[1767752527392,6.4737,139.1,139.03,0.32629908]
[1767752527793,6.4742,139.09,139.03,0.32629908]
[1767752530497,6.4742,139.09,139.01,0.32629908]
[1767752531602,6.4742,139.09,139.02,0.32629908]
[1767752531906,6.4742,139.09,139.0,8.98172262]
[1767752531907,2.58237897,139.09,139.0,9.3080217]
[1767752532099,2.58237897,139.09,139.0,0.32629908]
[1767752532597,6.475,139.08,139.0,0.32629908]
[1767752533696,6.475,139.08,139.01,6.80409908]
[1767752534797,2.58237897,139.09,139.03,0.32629908]
[1767752534998,85.0,139.11,139.03,0.32629908]
[1767752535193,91.4733,139.11,139.03,0.32629908]
[1767752536403,91.4733,139.11,139.01,8.98172262]
[1767752536404,85.0,139.11,139.01,8.98172262]
[1767752536604,85.0,139.11,139.01,9.3080217]
[1767752536804,85.0,139.11,139.02,0.32629908]
[1767752537311,91.4734,139.11,139.03,6.4767]
[1767752537607,91.4734,139.11,139.03,0.32629908]
[1767752537812,91.4734,139.11,139.04,0.32629908]
[1767752538700,91.4734,139.11,139.04,6.80279908]
[1767752540006,91.4734,139.11,139.04,0.32629908]
[1767752540210,6.4739,139.1,139.04,0.32629908]
[1767752540799,6.4739,139.1,139.02,9.3080217]
[1767752541307,6.4739,139.1,139.03,15.7845217]
[1767752546516,1.25179856,139.16,139.09,0.32629908]
[1767752546809,85.0,139.19,139.09,0.32629908]
[1767752547204,85.0,139.18,139.09,0.32629908]
[1767752547817,85.0,139.18,139.1,0.32629908]
[1767752548605,91.47,139.18,139.1,6.79989908]
[1767752550916,91.47,139.18,139.11,6.4731]
[1767752551115,2.58237897,139.23,139.11,0.32629908]
[1767752551323,84.98,139.22,139.12,0.32629908]
[1767752552624,6.4687,139.21,139.13,6.78332016]
[1767752552924,84.98,139.22,139.13,6.78332016]
[1767752553225,84.98,139.22,139.14,6.78282016]
[1767752554617,91.4482,139.22,139.14,6.78282016]
[1767752556214,84.96,139.21,139.14,6.78282016]
[1767752557724,84.96,139.21,139.12,8.98172262]
[1767752557725,2.58237897,139.23,139.15,6.78232016]
[1767752557922,84.96,139.22,139.15,6.78232016]
[1767752558528,86.60875644,139.22,139.15,6.78232016]
[1767752558928,84.96,139.21,139.15,6.78232016]
[1767752559130,1.64875644,139.2,139.13,6.78322016]
[1767752559430,86.60875644,139.2,139.14,0.31112016]
[1767752559722,86.60875644,139.21,139.15,6.4713]
[1767752559928,86.60875644,139.21,139.14,0.31112016]
[1767752560319,93.07735644,139.21,139.14,0.31112016]
[1767752562522,6.4691,139.2,139.14,0.31112016]
[1767752564334,91.4286,139.21,139.14,6.78282016]
[1767752566631,6.4691,139.2,139.14,6.78282016]
[1767752567236,84.96,139.21,139.14,6.78282016]
[1767752571939,1.64875644,139.2,139.14,6.78282016]
[1767752572241,1.64875644,139.2,139.14,6.4717]
[1767752572440,8.11785644,139.2,139.13,6.4723]
[1767752572634,1.64875644,139.2,139.13,6.4723]
[1767752573532,6.4695,139.19,139.13,6.4723]
[1767752579747,1.64875644,139.18,139.1,9.30910023]
[1767752579945,1.64875644,139.16,139.1,0.32737761]
[1767752580341,86.58875644,139.16,139.1,0.32737761]
[1767752580846,86.58875644,139.16,139.1,6.80057761]
[1767752581047,86.58875644,139.16,139.08,8.98172262]
[1767752581235,1.64875644,139.14,139.07,0.32737761]
[1767752581436,1.64875644,139.12,139.07,0.32737761]
[1767752581637,1.64875644,139.12,139.05,8.98172262]
[1767752581638,1.64875644,139.12,139.05,9.28894918]
[1767752581844,1.64875644,139.1,139.05,9.28894918]
[1767752582050,1.64875644,139.1,139.05,0.30722656]
[1767752583447,1.64875644,139.1,139.03,15.76544918]
[1767752583640,1.64875644,139.08,139.03,0.30722656]
[1767752584352,1.64875644,139.12,139.04,0.30722656]
[1767752584552,1.64875644,139.1,139.04,0.30722656]
[1767752585750,1.64875644,139.1,139.05,6.4759]
[1767752587755,6.4729,139.12,139.05,6.4759]
[1767752587955,1.64875644,139.1,139.05,6.4759]
[1767752591058,1.64875644,139.1,139.05,6.78312656]
[1767752591355,8.12115644,139.13,139.07,0.30722656]
[1767752591554,93.08115644,139.13,139.07,0.30722656]
[1767752591859,1.64875644,139.11,139.07,0.30722656]
[1767752592752,6.4724,139.13,139.07,0.30722656]
[1767752592753,8.12115644,139.13,139.07,0.30722656]
[1767752593557,1.64875644,139.13,139.07,0.30722656]
[1767752594054,1.64875644,139.13,139.07,6.78222656]
[1767752595060,1.64875644,139.13,139.07,0.30722656]
[1767752595654,8.12105644,139.13,139.07,0.30722656]
[1767752597058,1.64875644,139.13,139.07,0.30722656]
[1767752597560,8.12115644,139.13,139.07,0.30722656]
[1767752600659,1.64875644,139.11,139.06,8.98172262]
[1767752600861,1.64875644,139.11,139.05,0.30722656]
[1767752601359,1.64875644,139.11,139.05,6.78322656]
[1767752602464,8.12195644,139.11,139.05,6.78322656]
[1767752603063,6.4732,139.11,139.05,6.78322656]
[1767752605563,6.4732,139.11,139.05,0.30722656]
[1767752607773,6.4732,139.11,139.05,6.78322656]
[1767752612269,6.4732,139.11,139.05,15.76494918]
[1767752613567,6.4732,139.11,139.05,6.78322656]
[1767752615068,6.4732,139.11,139.06,0.30983455]
[1767752617567,6.4732,139.11,139.06,9.29155717]
[1767752617965,6.4732,139.11,139.06,0.30983455]
[1767752618267,6.4732,139.11,139.06,9.29155717]
[1767752619267,6.4732,139.11,139.07,0.30983455]
[1767752619675,7.196,139.2,139.07,0.30983455]
[1767752619976,1.64875644,139.17,139.1,9.29155717]
[1767752620372,86.62875644,139.17,139.1,9.29155717]
[1767752620573,6.4713,139.16,139.1,9.29155717]
[1767752622176,6.4713,139.16,139.11,8.98172262]
[1767752624378,6.4714,139.15,139.11,8.98172262]
[1767752624682,6.4714,139.15,139.1,13.77157208]
[1767752625385,6.4714,139.15,139.1,0.30983455]
[1767752625581,6.4718,139.14,139.08,0.30983455]
[1767752625781,2.57833237,139.13,139.08,0.30983455]
[1767752626384,6.4718,139.14,139.08,0.30983455]
[1767752627685,6.4718,139.14,139.08,6.78443455]
[1767752628273,6.4718,139.14,139.08,0.30983455]
[1767752631487,6.4724,139.13,139.08,0.30983455]
[1767752636095,6.4724,139.13,139.07,6.475]
[1767752637198,6.4724,139.13,139.07,6.78483455]
[1767752644103,6.4728,139.12,139.05,6.4758]
[1767752644307,2.57833237,139.13,139.03,0.33133038]
[1767752644709,84.96,139.12,139.06,6.80683038]
[1767752648716,84.96,139.12,139.06,20.25327899]
[1767752651807,84.96,139.12,139.07,6.475]
[1767752654317,6.4723,139.13,139.07,6.475]
[1767752654516,91.4523,139.13,139.07,6.475]
[1767752654717,91.4523,139.13,139.07,15.44086501]
[1767752655209,91.4523,139.13,139.07,8.96586501]
[1767752658223,6.4729,139.12,139.07,8.96586501]
[1767752665622,6.4732,139.11,139.07,8.96586501]
[1767752666027,87.55833237,139.13,139.05,13.44644861]
[1767752666329,2.57833237,139.1,139.03,13.44644861]
[1767752666727,2.57833237,139.1,139.02,13.77777899]
[1767752667627,6.4742,139.09,139.02,20.25517899]
[1767752671530,6.4746,139.08,139.02,13.44644861]
[1767752671729,6.4746,139.08,139.01,0.32625602]
[1767752672531,6.4746,139.08,139.01,6.80405602]
[1767752675635,6.4751,139.07,139.01,6.80405602]
[1767752677230,6.4751,139.07,139.01,0.32625602]
[1767752677425,2.57833237,139.1,139.01,0.32625602]
[1767752677630,103.30643237,139.07,138.98,0.32625602]
[1767752677936,2.57833237,139.04,138.96,0.32625602]
[1767752678733,85.0,139.03,138.96,0.32625602]
[1767752679531,6.4779,139.01,138.96,0.32625602]
[1767752682241,85.0,139.03,138.96,0.32625602]
[1767752682633,1.65348706,139.02,138.96,0.32625602]
[1767752683541,8.13088706,139.02,138.96,0.32625602]
[1767752699055,6.4774,139.02,138.96,0.32625602]
[1767752699356,8.13088706,139.02,138.96,0.32625602]
[1767752700253,1.65348706,139.06,138.97,0.31105676]
[1767752700455,86.69348706,139.07,138.98,0.31105676]
[1767752701348,6.4755,139.06,138.97,8.91871543]
[1767752701557,1.65348706,139.09,139.0,0.31105676]
[1767752701752,86.69348706,139.09,139.0,0.31105676]
[1767752702259,1.65348706,139.11,139.03,0.31539657]
[1767752702463,85.04,139.12,139.03,0.31539657]
[1767752702658,85.04,139.12,139.04,0.31539657]
[1767752702958,6.4739,139.1,139.04,0.31539657]
[1767752706360,1.65348706,139.11,139.04,0.31539657]
[1767752706669,1.65348706,139.11,139.04,6.79179657]
[1767752709876,8.12698706,139.11,139.04,0.31539657]
[1767752712975,8.12698706,139.11,139.05,0.31539657]
[1767752717980,6.4735,139.11,139.05,0.31539657]
[1767752718581,6.4737,139.1,139.05,0.31539657]
[1767752718782,6.4737,139.1,139.03,9.234112]
[1767752718982,6.4737,139.1,139.03,0.31539657]
[1767752719683,6.4737,139.1,139.03,6.79229657]
[1767752720780,85.02,139.12,139.03,6.79229657]
[1767752720781,1.65348706,139.09,139.03,0.31539657]
[1767752720985,1.65348706,139.07,139.01,8.91871543]
[1767752721181,1.65348706,139.07,138.99,13.76184518]
[1767752721182,1.65348706,139.05,138.99,9.234112]
[1767752721571,8.12948706,139.05,138.99,6.79389657]
[1767752721976,1.65348706,139.05,138.99,6.79389657]
[1767752728190,8.12958706,139.05,138.99,6.79389657]
[1767752728385,1.65348706,139.05,138.99,6.79389657]
[1767752728592,1.65348706,139.07,139.01,0.31539657]
[1767752729680,8.12898706,139.07,139.01,0.31539657]
[1767752730792,6.4755,139.06,139.01,0.31539657]
[1767752733690,1.65348706,139.07,139.01,0.31539657]
[1767752733999,85.0,139.12,139.02,0.33023419]
[1767752734192,1.65348706,139.1,139.02,0.33023419]
[1767752734694,6.4745,139.09,139.03,0.33023419]
[1767752734896,1.65348706,139.1,139.03,0.33023419]
[1767752735097,86.65348706,139.12,139.04,0.33023419]
[1767752735288,86.65348706,139.12,139.04,9.24894962]
[1767752735593,86.65348706,139.12,139.05,0.33023419]
[1767752736296,1.65348706,139.12,139.05,0.33023419]
[1767752737699,1.65348706,139.12,139.06,6.80573419]
[1767752740200,6.4727,139.13,139.07,0.33023419]
[1767752742000,6.4727,139.13,139.07,6.80523419]
[1767752742199,8.12528706,139.15,139.08,9.24894962]
[1767752742405,1.65348706,139.15,139.09,0.33023419]
[1767752742592,87.57866457,139.17,139.09,0.33023419]
[1767752742901,2.57866457,139.17,139.09,0.33023419]
[1767752743592,6.4711,139.16,139.09,6.80423419]
[1767752743895,2.57866457,139.17,139.1,0.33023419]
[1767752744292,2.57866457,139.2,139.12,0.33023419]
[1767752745697,9.04806457,139.2,139.13,6.4722]
[1767752746300,9.04806457,139.2,139.12,0.33023419]
[1767752746800,6.4696,139.19,139.12,6.80293419]
[1767752752306,9.04766457,139.21,139.13,0.33023419]
[1767752752701,2.57866457,139.21,139.13,0.33023419]
[1767752753607,9.04726457,139.21,139.15,6.4712]
[1767752756207,2.57866457,139.21,139.15,6.4712]
[1767752756405,2.57866457,139.24,139.16,0.33023419]
[1767752756609,6.4667,139.25,139.16,0.33023419]
[1767752757400,2.57866457,139.24,139.16,0.33023419]
[1767752757909,9.04606457,139.24,139.17,6.4704]
[1767752760109,6.4665,139.26,139.17,0.33023419]
[1767752761408,6.4667,139.25,139.17,6.80023419]
[1767752761619,2.57866457,139.24,139.17,6.47]
[1767752762004,2.57866457,139.24,139.15,0.30317833]
[1767752763115,6.4677,139.23,139.17,6.4703]
[1767752763313,2.57866457,139.24,139.17,0.2999396]
[1767752763612,87.51866457,139.27,139.19,6.4694]
[1767752764015,6.4667,139.25,139.19,6.4694]
[1767752764218,6.4667,139.25,139.17,0.2999396]
[1767752765218,6.4667,139.25,139.18,6.7694396]
[1767752765511,6.4667,139.25,139.18,0.2999396]
[1767752765718,6.4674,139.24,139.17,6.47]
[1767752766107,6.4674,139.24,139.16,0.2999396]
[1767752766311,6.4667,139.25,139.18,6.4699]
[1767752767023,6.4667,139.25,139.18,6.7698396]
[1767752767725,6.4667,139.25,139.19,6.4695]
[1767752768216,87.51866457,139.27,139.15,0.2999396]
[1767752768217,6.4673,139.24,139.15,0.2999396]
[1767752768917,6.4676,139.23,139.17,6.4701]
[1767752769216,87.51866457,139.27,139.15,0.2999396]
[1767752769217,2.57866457,139.24,139.15,0.2999396]
[1767752769419,84.92,139.23,139.13,0.2999396]
[1767752769614,6.4687,139.21,139.14,6.4718]
[1767752770006,6.4686,139.21,139.14,6.4718]
[1767752771318,6.4681,139.22,139.14,0.2999396]
[1767752771520,84.92,139.23,139.14,0.2999396]
[1767752772121,84.92,139.23,139.08,113.6621]
[1767752772122,2.57866457,139.21,139.12,0.2999396]
[1767752772509,84.92,139.2,139.12,0.2999396]
[1767752773616,6.47,139.18,139.12,6.7722396]
[1767752774121,84.92,139.2,139.12,6.7722396]
[1767752774327,91.3894,139.2,139.12,6.7722396]
[1767752775431,6.4695,139.19,139.12,6.7722396]
[1767752776529,84.92,139.2,139.12,6.7722396]
[1767752777627,91.3891,139.2,139.12,6.7722396]
[1767752778233,91.3891,139.2,139.13,6.7720396]
[1767752779027,6.4691,139.2,139.13,6.7720396]
[1767752779632,87.51866457,139.21,139.14,0.2999396]
[1767752780025,21.61,139.27,139.15,0.2999396]
[1767752780026,2.57866457,139.24,139.15,0.2999396]
[1767752781232,84.94,139.25,139.15,0.2999396]
[1767752781431,84.94,139.25,139.16,6.7707396]
[1767752781623,84.94,139.25,139.16,0.2999396]
[1767752782529,6.4682,139.22,139.16,0.2999396]
[1767752785230,6.4686,139.21,139.16,0.2999396]
[1767752786630,6.4686,139.21,139.14,15.39051543]
[1767752786631,6.4691,139.2,139.14,15.39051543]
[1767752786830,6.4691,139.2,139.14,15.69045503]
[1767752788730,6.4682,139.22,139.15,15.68975503]
[1767752788929,84.92,139.24,139.15,15.68975503]
[1767752789129,84.92,139.24,139.16,0.2999396]
[1767752789338,6.468,139.23,139.16,0.2999396]
[1767752789932,6.4681,139.22,139.16,0.2999396]
[1767752790236,6.4681,139.22,139.16,9.21865503]
[1767752790533,6.4666,139.26,139.18,0.2999396]
[1767752790734,84.92,139.27,139.18,0.2999396]
[1767752791131,203.67946457,139.32,139.19,0.2999396]
[1767752791333,84.92,139.31,139.2,0.2999396]
[1767752791540,84.92,139.31,139.21,0.32504202]
[1767752791925,91.3846,139.3,139.22,6.79304202]
[1767752792234,84.92,139.3,139.22,0.32504202]
[1767752792629,6.465,139.29,139.22,0.32504202]
[1767752793029,6.465,139.29,139.21,6.4685]
[1767752793629,6.465,139.29,139.21,6.79354202]
[1767752794528,91.385,139.29,139.21,6.79354202]
[1767752796136,6.4642,139.31,139.22,0.32504202]
[1767752797341,84.92,139.32,139.24,6.4671]
[1767752797645,84.92,139.32,139.23,0.32504202]
[1767752797943,84.92,139.32,139.25,6.79164202]
[1767752798935,2.57866457,139.38,139.27,0.32504202]
[1767752799147,84.9,139.37,139.27,0.32504202]
[1767752799541,2.57866457,139.38,139.27,0.32504202]
[1767752799839,84.9,139.37,139.27,0.32504202]
[1767752800038,0.90577337,139.41,139.35,0.32504202]
[1767752800236,100.4309,139.48,139.32,0.32504202]
[1767752800237,103.04296457,139.43,139.32,0.32504202]
[1767752800436,2.57866457,139.43,139.32,0.32504202]
[1767752800644,6.459,139.42,139.33,6.4628]
[1767752800849,87.47866457,139.43,139.33,6.78784202]
[1767752801844,187.94566457,139.43,139.31,6.4638]
[1767752802034,2.57866457,139.4,139.31,0.32504202]
[1767752802243,2.57866457,139.4,139.27,109.49761543]
[1767752802244,2.57866457,139.4,139.28,0.32504202]
[1767752802436,84.88,139.39,139.28,0.32504202]
[1767752802642,1.64554545,139.36,139.28,0.32504202]
[1767752803642,1.64554545,139.36,139.29,6.78974202]
[1767752804042,1.64554545,139.37,139.29,0.32504202]
[1767752804549,84.88,139.39,139.3,0.32504202]
[1767752804748,84.88,139.39,139.28,100.5689]
[1767752804749,1.64554545,139.36,139.28,100.5689]
[1767752804949,1.64554545,139.36,139.28,100.89394202]
[1767752805150,1.64554545,139.34,139.28,0.32504202]
[1767752805452,185.3761,139.39,139.28,0.32504202]
[1767752805647,1.64554545,139.33,139.28,0.32504202]
[1767752805951,1.64554545,139.33,139.24,185.4572]
[1767752806154,1.64554545,139.33,139.25,0.32504202]
[1767752806547,1.64554545,139.33,139.27,6.4656]
[1767752807360,1.64554545,139.34,139.27,6.79064202]
[1767752814557,1.64554545,139.34,139.27,0.32504202]
[1767752814854,1.64554545,139.34,139.25,6.4664]
[1767752814855,1.64554545,139.32,139.24,0.32504202]
[1767752815652,8.10914545,139.32,139.24,0.32504202]
[1767752816255,8.10914545,139.32,139.24,6.79204202]
[1767752817158,1.64554545,139.3,139.22,6.4679]
[1767752817357,1.64554545,139.28,139.22,6.4679]
[1767752817555,1.64554545,139.28,139.22,6.79294202]
[1767752817751,1.64554545,139.29,139.22,6.79294202]
[1767752818564,92.97004545,139.3,139.23,0.29991635]
[1767752819469,91.3245,139.3,139.24,0.29991635]
[1767752820767,1.64554545,139.29,139.21,0.29991635]
[1767752821675,91.3245,139.3,139.23,0.32161219]
[1767752822164,6.4645,139.3,139.23,0.32161219]
[1767752822673,6.4645,139.3,139.23,6.78911219]
[1767752826265,8.11044545,139.29,139.23,0.32161219]
[1767752826466,8.11044545,139.29,139.21,0.32161219]
[1767752827569,8.11044545,139.29,139.22,6.78961219]
[1767752828672,92.96974545,139.31,139.24,0.32161219]
[1767752828868,8.10974545,139.31,139.24,0.32161219]
[1767752829371,92.98974545,139.31,139.24,0.32161219]
[1767752829570,6.4634,139.33,139.24,0.32161219]
[1767752829867,86.52554545,139.34,139.24,0.32161219]
[1767752830371,86.52554545,139.34,139.28,6.4652]
[1767752831664,86.52554545,139.34,139.27,0.32161219]
[1767752832679,92.98804545,139.34,139.27,6.78731219]
[1767752835171,86.52554545,139.34,139.25,6.78791219]
[1767752835381,1.64554545,139.32,139.25,6.78791219]
[1767752835583,1.64554545,139.32,139.25,0.32161219]
[1767752835880,86.50554545,139.32,139.25,0.32161219]
[1767752836875,91.3235,139.32,139.25,0.32161219]
[1767752837777,84.86,139.32,139.25,0.32161219]
[1767752838271,6.4615,139.37,139.29,6.4645]
[1767752838477,92.96704545,139.37,139.29,6.78611219]
[1767752838777,86.50554545,139.37,139.29,6.78611219]
[1767752839570,1.64554545,139.37,139.29,6.78611219]
[1767752839769,86.50554545,139.37,139.29,6.78611219]
[1767752840078,1.64554545,139.35,139.27,8.91871543]
[1767752840465,1.64554545,139.35,139.27,9.24032762]
[1767752840978,86.50554545,139.35,139.27,9.24032762]
[1767752841477,1.64554545,139.35,139.27,9.24032762]
[1767752841681,6.4627,139.34,139.28,6.4653]
[1767752842279,8.10764545,139.35,139.28,6.4653]
[1767752842873,1.64554545,139.35,139.29,6.4648]
[1767752843067,6.4615,139.37,139.3,0.32161219]
[1767752843275,1.64554545,139.38,139.3,0.32161219]
[1767752843475,1.64554545,139.38,139.3,9.24032762]
[1767752843678,1.64554545,139.38,139.32,6.4634]
[1767752843877,1.64554545,139.38,139.3,0.32161219]
[1767752844283,6.4612,139.37,139.31,6.4639]
[1767752846886,100.4816,139.41,139.28,13.44644861]
[1767752846887,8.10714545,139.36,139.29,8.91871543]
[1767752847277,8.10714545,139.36,139.29,9.24032762]
[1767752847677,8.10714545,139.36,139.3,6.4643]
[1767752850583,8.10714545,139.36,139.3,6.78591219]
[1767752851086,1.64554545,139.36,139.3,6.78591219]
[1767752851487,84.86,139.37,139.31,6.78633803]
[1767752852583,113.3737,139.44,139.32,6.78573803]
[1767752852789,1.64554545,139.39,139.32,6.78573803]
[1767752853290,8.10574545,139.39,139.32,6.78573803]
[1767752853476,8.10574545,139.39,139.33,6.4629]
[1767752854181,1.64554545,139.39,139.33,6.4629]
[1767752855289,1.64554545,139.41,139.34,6.4625]
[1767752855482,86.48554545,139.42,139.34,6.78493803]
[1767752855992,6.4598,139.4,139.34,6.78493803]
[1767752857087,92.94474545,139.42,139.34,6.78493803]
[1767752857391,86.48554545,139.42,139.35,0.32243803]
[1767752857787,1.64554545,139.4,139.35,0.32243803]
[1767752858087,1.64554545,139.38,139.32,8.91871543]
[1767752858384,1.64554545,139.36,139.31,8.91871543]
[1767752858585,1.64554545,139.34,139.29,8.91871543]
[1767752859584,1.64554545,139.34,139.29,15.70585346]
[1767752859988,1.64554545,139.32,139.28,8.91871543]
[1767752860191,1.64554545,139.32,139.27,0.32243803]
[1767752860388,84.84,139.37,139.27,0.32243803]
[1767752860591,1.64554545,139.34,139.28,0.32243803]
[1767752861101,1.64554545,139.34,139.29,6.4648]
[1767752862199,8.10814545,139.34,139.28,0.32243803]
[1767752862501,8.10814545,139.34,139.27,6.4654]
[1767752862502,1.64554545,139.32,139.27,6.4654]
[1767752862887,6.4626,139.34,139.27,6.4654]
[1767752863094,1.64554545,139.33,139.27,6.4654]
[1767752863296,1.64554545,139.33,139.27,15.70655346]
[1767752864095,1.64554545,139.33,139.28,6.4652]
[1767752864296,86.48554545,139.35,139.28,8.91871543]
[1767752864492,84.84,139.35,139.29,0.32243803]
[1767752865094,87.41118848,139.38,139.29,0.32243803]
[1767752865702,6.4616,139.37,139.29,6.78723803]